Cogmind - Beta 16.1 @@@ ROGUE MODE // 2026.03.25 @ 15:23:34 Player: Thqwib-Linux Result: Destroyed by as-61652 with Assembled F-torch Performance ------------- Evolutions (0) 0 Regions Visited (2) 400 Robots Destroyed (16) 80 Value Destroyed (416) 416 Prototype IDs (0) 0 Alien Tech Used (0) 0 Bonus (0) 0 TOTAL SCORE: 896 Bonus ------- None Cogmind --------- Core Integrity 0/250 Matter 220/300 Energy 100/100 System Corruption 3% Temperature Cool (20) Movement Walking (120) Location -10/Mines Parts ------- > --- POWER (1) -------- (None) > --- PROPULSION (2) --- Aluminum Leg Aluminum Leg > --- UTILITY (2) ------ Improved Heat Sink Small Storage Unit > --- WEAPON (2) ------- Grenade Launcher > --- INVENTORY (8) ---- Ion Engine Aluminum Leg Improved Terrain Scanner Small Laser Small Laser Beam Cannon Peak State ------------ > --- POWER ------------ Light Nuclear Core > --- PROPULSION ------- Aluminum Leg Aluminum Leg > --- UTILITY ---------- Improved Heat Sink Small Storage Unit > --- WEAPON ----------- Small Laser Small Laser > --- INVENTORY -------- Ion Engine Aluminum Leg Improved Terrain Scanner Grenade Launcher Grenade Launcher [Rating: 11] Favorites ----------- Power Light Ion Engine Engine Light Ion Engine Power Core Light Nuclear Core Propulsion Aluminum Leg Leg Aluminum Leg Utility Small Storage Unit Device Improved Heat Sink Storage Small Storage Unit Weapon Assault Rifle Energy Gun Small Laser Ballistic Gun Assault Rifle Launcher Grenade Launcher Build | -11 -10 -10 ------- Run | Yrd Mat Min Slots Evolved . | . . . Power . | . . . Propulsion . | . . . Utility . | . . . Weapon . | . . . Parts Attached 15 | 2 11 2 Power 3 | . 3 . Engine 1 | . 1 . Core 2 | . 2 . Reactor . | . . . Propulsion 4 | . 4 . Treads . | . . . Leg 4 | . 4 . Wheel . | . . . Hover . | . . . Flight . | . . . Utility 2 | . 2 . Device 2 | . 2 . Storage . | . . . Processor . | . . . Hackware . | . . . Protection . | . . . Artifact . | . . . Weapon 6 | 2 2 2 Energy Gun 2 | . 2 . Energy Cannon . | . . . Ballistic Gun 2 | 2 . . Ballistic Cannon . | . . . Launcher 2 | . . 2 Special Weapon . | . . . Impact Weapon . | . . . Slashing Weapon . | . . . Piercing Weapon . | . . . Special Melee Weapon . | . . . Unidentified Prototypes . | . . . Parts Lost 7 | . 5 2 Power 3 | . 2 1 Propulsion 1 | . 1 . Utility . | . . . Weapon 3 | . 2 1 Highest Loss Streak 5 | . 5 2 To Critical Strikes . | . . . Average Backups 4 | 2 4 6 Power . | 1 . 1 Propulsion . | . . 1 Utility 1 | . 1 1 Weapon 1 | . 1 3 Tool/Special . | . . . Unused Backups 16 | 10 2 4 Power 3 | 1 1 1 Propulsion 8 | 6 1 1 Utility 2 | 1 . 1 Weapon 3 | 2 . 1 Tool/Special . | . . . Average Slot Usage (%) 90 | . 89 95 Engine 7 | . 8 . Core 5 | . 5 9 Leg 27 | . 27 28 Device 7 | . 7 14 Storage 14 | . 14 14 Energy Gun 12 | . 13 9 Ballistic Gun 12 | . 12 . Peak Build Rating 11 | 6 11 11 Average Rating 8 | 5 8 10 On Entrance 7 | 6 5 11 Avg Prop Armor Cover (%) . | . . . Naked Turns . | . . . Heaviest Build 17 | 12 13 17 Greatest Support 20 | 20 20 20 Greatest Overweight (x) 1 | . 1 . Average Overweight (x) . | . . . Largest Inventory Capacity 8 | 8 8 8 Average Capacity 8 | 8 8 8 Most Carried 6 | 6 6 6 Average Carried 4 | 1 4 6 Final Capacity 8 | 8 8 8 Final Carried 6 | 3 6 6 Class Distribution -------------------- 51% | Mutant 48% | Scavenger-Mutant Dominant Class ---------------- Scavenger-Mutant | -10/Materials Scavenger-Mutant | -10/Mines Resources | -11 -10 -10 ----------- Run | Yrd Mat Min Matter Collected 534 | 240 294 . Remotely . | . . . Salvage Created 664 | 111 494 59 Parts 39 | 7 30 2 Haulers Intercepted 2 | . 2 . Recyclers Shooed 1 | 1 . . Parts Field Recycled . | . . . Retrieved Matter . | . . . Parts Self-Destructed . | . . . Prevented . | . . . Parts Restored . | . . . Kills | -11 -10 -10 ------- Run | Yrd Mat Min Combat Hostiles Destroyed 20 | . 11 9 Guns 11 | . 11 . AOE 9 | . . 9 Classes Destroyed 6 | 2 3 1 Tunneler 1 | 1 . . Hauler 2 | . 2 . Recycler 1 | 1 . . Swarmer 2 | . 2 . Grunt 10 | . 9 1 Assembled 8 | . . 8 Best Kill Streak 10 | 2 2 10 Combat Bots Only 10 | . 2 10 Max Kills in Single Turn 3 | 1 1 3 Gunslinging . | . . . Exploded 3 | . . 3 Melee . | . . . Uniques/NPCs Destroyed . | . . . Combat | -11 -10 -10 -------- Run | Yrd Mat Min Hostile Shots Fired 126 | . 99 27 Missed 42 | . 33 9 Hits 84 | . 66 18 Melee 5 | . . 5 Projectile 79 | . 66 13 Critical Strikes 2 | . 2 . Damage Taken 1220 | . 851 369 Core 259 | . 176 83 Absorbed by Shields . | . . . Core Remaining (%) 100 | 100 . . Volleys Fired 66 | 5 57 4 Largest 2 | 2 2 2 Hottest 80 | 40 80 60 Shots Fired 125 | 10 108 7 Gun 118 | 10 108 . Cannon . | . . . Launcher 7 | . . 7 Special . | . . . Kinetic 65 | 10 55 . Thermal 53 | . 53 . Explosive 7 | . . 7 Electromagnetic . | . . . Robot Hit Streak 7 | 2 7 4 Robot Miss Streak 5 | 2 5 . Penetration Max . | . . . Secondary Targets 1 | . 1 . Max Gunslinging Chain 1 | . 1 . Shots Hit Robots 75 | 6 68 1 Core Hits 50 | 2 29 19 Critical Kills 1 | . 1 . Critical Parts Destroyed 1 | . 1 . Critical Strikes 2 | . 2 . Destroy 2 | . 2 . Melee Attacks . | . . . Impact . | . . . Slashing . | . . . Piercing . | . . . Sneak Attacks . | . . . Combat Hostiles . | . . . Follow-up Attacks . | . . . Damage Inflicted 1339 | 90 873 376 Guns 963 | 90 873 . Cannons . | . . . Explosions 376 | . . 376 Melee . | . . . Ramming . | . . . Kinetic 532 | 90 442 . Thermal 431 | . 431 . Explosive 376 | . . 376 Electromagnetic . | . . . Impact . | . . . Slashing . | . . . Piercing . | . . . Highest Corruption 3 | . 3 3 Average Corruption 2 | . 2 3 Corruption Purged . | . . . Corruption Blocked . | . . . Effects 4 | . 3 1 Message Errors 2 | . 1 1 Matter Fused 1 | . 1 . Weapon Failures 1 | . 1 . Overload Shots . | . . . Overflow Damage . | . . . Projectiles . | . . . Explosions . | . . . Melee . | . . . Knockbacks . | . . . Impact . | . . . Kinetic . | . . . Secondary . | . . . Self-Inflicted Damage 37 | . . 37 Shots 1 | . . 1 Rammed . | . . . Targets Rammed 1 | . 1 . Kicked 1 | . 1 . Crushed . | . . . Highest Temperature 37 | . 37 1 Average Temperature 13 | . 13 1 Received Heat Transfer 580 | . 468 112 Siege Activations . | . . . Martial Activations . | . . . Shielding Activations . | . . . Robots Disrupted . | . . . Combat Hostiles . | . . . Robots Corrupted . | . . . Combat Hostiles . | . . . Parts Fried . | . . . Impact Corruptions . | . . . Robots Melted . | . . . Combat Hostiles . | . . . Parts Melted 3 | . 3 . Heat Transferred 950 | . 950 . Parts Sabotaged . | . . . Parts Stolen . | . . . Parts Stripped . | . . . Power Chain Reactions . | . . . Alert | -11 -10 -10 ------- Run | Yrd Mat Min Maximum Alert Level . | . . . Low Security (%) 100 | 100 100 100 Level 1 . | . . . Level 2 . | . . . Level 3 . | . . . Level 4 . | . . . Level 5 . | . . . High Security . | . . . Max Security . | . . . Peak Influence 64 | 10 64 61 Initial 24 | . . 24 Average 16 | . 17 42 Influence Increases 369 | 10 314 45 Destroy 0b10 Robot/C 240 | . 220 20 Destroy 0b10 Robot/NC 20 | 10 10 . Destroy Leader 44 | . 44 . Successful Hack 9 | . 9 . Destroy Structure 26 | . 1 25 Lose Combat Pursuer 30 | . 30 . Influence Decreases 330 | 10 250 70 Entered New Map 40 | . . 40 Time Decay 220 | 10 200 10 Lost Part 70 | . 50 20 Squads Dispatched 1 | . 1 . Investigation . | . . . Extermination . | . . . Reinforcement 1 | . 1 . Assault . | . . . Garrison . | . . . Intercept . | . . . Searches Triggered . | . . . Construction Impeded . | . . . Haulers Reinforced . | . . . Active Scanning Responses . | . . . Cargo Convoy Interrupts . | . . . Stealth | -11 -10 -10 --------- Run | Yrd Mat Min Distress Signals . | . . . Communications Jammed . | . . . Distress Signals . | . . . Times Spotted 44 | . 22 22 Peak Tracking Total 22 | . 7 22 Tactical Retreats 2 | . 1 1 Traps | -11 -10 -10 ------- Run | Yrd Mat Min Traps Triggered 3 | . 3 . Indirectly . | . . . Trap Hack Attempts . | . . . Triggered . | . . . Disarmed . | . . . Reprogrammed . | . . . Reused . | . . . Traps Extracted . | . . . Installed . | . . . Triggered . | . . . Machines | -11 -10 -10 ---------- Run | Yrd Mat Min Machines Disabled . | . . . Max in Single Turn . | . . . Machines Repaired . | . . . Machines Dismantled . | . . . Machines Sabotaged . | . . . Overloaded Fab Kills . | . . . Hacking | -11 -10 -10 --------- Run | Yrd Mat Min Machines Accessed 3 | . 3 . Terminals 3 | . 3 . Fabricators . | . . . Repair Stations . | . . . Recycling Units . | . . . Scanalyzers . | . . . Garrison Access . | . . . Total Hacks 10 | . 10 . Successful 5 | . 5 . Failed 5 | . 5 . Catastrophic . | . . . Database Lockouts . | . . . Manual 9 | . 9 . Terminals 10 | . 10 . Fabricators . | . . . Repair Stations . | . . . Recycling Units . | . . . Scanalyzers . | . . . Garrison Access . | . . . Terminal Hacks 2 | . 2 . Robot Analysis 1 | . 1 . Locate Traps 1 | . 1 . Fabricator Hacks . | . . . Repair Station Hacks . | . . . Recycling Unit Hacks . | . . . Scanalyzer . | . . . Garrison Access Hacks . | . . . Unauthorized Hacks 3 | . 3 . Terminals 3 | . 3 . Botnet 2 | . 2 . Disrupt 1 | . 1 . Fabricators . | . . . Repair Stations . | . . . Recycling Units . | . . . Scanalyzers . | . . . Garrison Access . | . . . Data Cores Recovered . | . . . Used . | . . . Hacking Detections 3 | . 3 . Full Trace Events . | . . . Feedback Events . | . . . Feedback Blocked . | . . . Robot Schematics Acquired . | . . . Robots Built . | . . . Authchips . | . . . Time . | . . . Total Robot Build Rating . | . . . Part Schematics Acquired . | . . . Parts Built . | . . . Authchips . | . . . Time . | . . . Total Part Build Rating . | . . . Part Studies Acquired . | . . . Parts Repaired . | . . . Time . | . . . Parts Recycled . | . . . Recycled Matter . | . . . Retrieved Matter . | . . . Retrieved Components . | . . . Parts Scanalyzed . | . . . Part Schematics Acquired . | . . . Parts Damaged . | . . . Bothacking | -11 -10 -10 ------------ Run | Yrd Mat Min Used RIF Installer . | . . . Robots Hacked . | . . . Non-combat . | . . . Combat . | . . . Robot Hacks Applied . | . . . Relay Couplers Released . | . . . Fabnet Peak Effective % . | . . . Robots Rewired . | . . . Allies Hacked . | . . . Hacks Repelled . | . . . Allies | -11 -10 -10 -------- Run | Yrd Mat Min Total Allies . | . . . Largest Group . | . . . Highest-Rated Group . | . . . Highest-Rated Ally . | . . . Total Orders . | . . . Ally Attacks . | . . . Total Damage . | . . . Kills . | . . . Allies Corrupted . | . . . Allies Melted . | . . . Intel | -11 -10 -10 ------- Run | Yrd Mat Min Active Infowar (turns) . | . . . Robot Analysis Total 1 | . 1 . Derelict Logs Recovered . | . . . Drone Launches . | . . . Drone Recoveries . | . . . Exploration | -11 -10 -10 ------------- Run | Yrd Mat Min Turns Passed 691 | 56 612 23 Spaces Moved 346 | 26 312 8 Core . | . . . Treads . | . . . Legs 346 | 26 312 8 Wheels . | . . . Hover . | . . . Flight . | . . . Fastest Speed 120 | 120 120 120 Average Speed 120 | 120 120 120 Slowest Speed 190 | 120 190 120 Overloaded Moves . | . . . Propulsion Burnouts . | . . . Robots Hopped . | . . . Potential Cave-ins . | . . . Cave-ins Triggered . | . . . Exploration Rate (%) 26 | 3 72 3 Regions Visited 2 Branch Regions 1 Pre-discovered Areas . | . . . Known Exits Taken . | . . . Unknown Exits Taken 2 | 1 1 . Scrap Searched . | . . . Spaces Dug . | . . . Terrain Destroyed 42 | . . 42 Melee . | . . . Projectile . | . . . AOE 42 | . . 42 Terrain Rammed . | . . . Walls Destroyed . | . . . Machines Disabled . | . . . Actions | -11 -10 -10 --------- Run | Yrd Mat Min Total 494 | 44 436 14 Wait 45 | . 45 . Move 344 | 25 311 8 Hop . | . . . Pick Up 7 | 1 6 . Fast Attach 5 | 1 4 . Attach 5 | 2 3 . Detach 3 | 3 . . Swap 8 | 1 5 2 Drop 10 | 6 4 . Fire 66 | 5 57 4 Melee . | . . . Ram . | . . . Kick 1 | . 1 . Crush . | . . . Escape Stasis . | . . . Rewire . | . . . Trap . | . . . Miscellaneous . | . . . Route ------- -11/Scrapyard -10/Materials (discovered 3 exits: [*Mat] / [*Min x2]) -10/Mines History --------- Turn | Location | Event 21 | -11/Scrapyard | Discovered new exit (range 3) 57 | -11/Scrapyard | Entered Materials 155 | -10/Materials | Discovered new exit (range 9) 309 | -10/Materials | Build established: Mutant 363 | -10/Materials | Discovered new exit (range 16) 386 | -10/Materials | Core integrity fell below 50% 417 | -10/Materials | Lost 5 parts (2p1n2w) 650 | -10/Materials | Build established: Scavenger-Mutant 657 | -10/Materials | Derelicts attacked the area 663 | -10/Materials | Discovered new exit (range 6) 669 | -10/Materials | Entered Mines 670 | -10/Mines | Assembled infested the area 676 | -10/Mines | Core integrity fell below 20% 692 | -10/Mines | Destroyed by as-61652 with Assembled F-torch Last Messages --------------- LOCATION=UNKNOWN GOAL=ESCAPE Something is scanning the area. 00670_ ALERT: Infestation in the mines, dispatching Demolisher response squad. 00677_ G-34 Mercenary destroyed. 00677_ as-88492 destroyed. 00677_ as-05166 destroyed. 00678_ AG2XWMZKFSTAWZL=T|X7 B&4SFO # 00682_ G-47 Trooper destroyed. 00685_ as-40080 destroyed. 00685_ as-57057 destroyed. 00688_ as-33412 destroyed. 00688_ Lgt. Nuclear Core destroyed. 00689_ The unstable cave ceiling collapses. 00690_ Grenade Launcher destroyed. 00691_ The unstable cave ceiling collapses. 00691_ as-45561 destroyed. 00691_ as-36020 destroyed. 00691_ as-58653 destroyed. Map ----- +----------------------------------------------------+ | | | | | | | | | | | | | | | | | | | | | | | | | | | | | | | | | | | | | | | | | ????????????????????????????????? | | ????????????????????????????????? | | ?????????????????????????????#??? | | ???????????????????????##### ##?# | | ???????????????????????# # | | ???????????????????????# @ | | ???????????????????????# %% | | ???????????????????????# | | ???????????????????????# % | | ???????????????????????## =a = # | | ????????????????????????### # | | ??????????????????????????? | | ??????????????????????????? a | | ??????????????????????????? # | | ???????????????????????????#a#### | | ???????????????????????????#a#??? | | ??????????????????????????? a#??? | | ??????????????????????????? #??? | | ??????????????????????????? ???? | | ??????????????????????????? ???? | | ??????????????????????????? ???? | | ??????????????????????????? ???? | | ???????????????????????????# ???? | | ???????????????????????????? ???? | | ???????????????????????????? ???? | | ????????????????????????????????? | | ????????????????????????????????? | | ????????????????????????????????? | | ????????????????????????????????? | | ????????????????????????????????? | +----------------------------------------------------+ Best States ------------- Heat Dissipation 39 Energy Generation 14 Energy Capacity 250 Matter Stores 300 Matter Capacity 300 Sight Range 16 Terrain Scan Density 10 Evasion (%) 55 Item Schematics ----------------- None Robot Schematics ------------------ None Fabricated ------------ Nothing Repaired ---------- Nothing Studied --------- None Alien Tech Used ----------------- None Achievements -------------- None Challenges ------------ None Game ------ Seed AutogunDataAutobeam Manual? 0 Play Time 00:11:31 Cumulative 59.4 hours Start 2026.03.25 @ 15:09:52 End 2026.03.25 @ 15:23:34 Sessions 1 Manual Loads 0 Difficulty Rogue Special Mode None Game No. 61 Rogue 61 Adventurer 0 Explorer 0 Win Type - Total 1 Types 1/0/0/0/0/0/0/0/0/0 Lore% 48 Gallery% 37 Achievement% 34 Wizard Run 0 Options --------- Layout 0 ASCII 0 Keyboard 1 Movement Arrows Keybinds 0 Fullscreen 2 Font 18/Terminus Map View 76x50 Zoom Use 0% Tactical HUD 1 Map Filters NONE Filters NONE Steam 1 RUN: c870a0ed-93b8-49e3-bcf3-4667c0a858fc